[Event "Early-Titled-Tuesday-Blitz-February-27-2024"]
[Site "Chess.com"]
[Date "2024.02.27"]
[Round "1"]
[White "Bastiandash"]
[Black "EdmundPlayer"]
[Result "1-0"]
[WhiteElo "2611"]
[BlackElo "2273"]
[TimeControl "180+1"]
[EndTime "8:07:24 PST"]
[Termination "Bastiandash won by resignation"]

1. e4 {[%clk 0:03:00.9]} 1... c6 {[%clk 0:02:52.4]} 2. d4 {[%clk 0:02:59]} 2...
d5 {[%clk 0:02:45]} 3. f3 {[%clk 0:02:59.1]} 3... e6 {[%clk 0:02:43.6]} 4. Nc3
{[%clk 0:02:57.5]} 4... Nf6 {[%clk 0:02:41.9]} 5. Nge2 {[%clk 0:02:52.2]} 5...
Bb4 {[%clk 0:01:59.7]} 6. Qd3 {[%clk 0:02:50.8]} 6... O-O {[%clk 0:01:22.2]} 7.
a3 {[%clk 0:02:45]} 7... Ba5 {[%clk 0:01:17.7]} 8. Bg5 {[%clk 0:02:35.3]} 8...
h6 {[%clk 0:01:12.4]} 9. Bh4 {[%clk 0:02:35.6]} 9... dxe4 {[%clk 0:01:06]} 10.
fxe4 {[%clk 0:02:34]} 10... e5 {[%clk 0:01:06.6]} 11. dxe5 {[%clk 0:02:26]}
11... Qxd3 {[%clk 0:01:05]} 12. cxd3 {[%clk 0:02:26.9]} 12... Ng4 {[%clk
0:01:02.1]} 13. d4 {[%clk 0:02:18]} 13... Ne3 {[%clk 0:01:01.7]} 14. Kd2 {[%clk
0:01:57]} 14... Nc4+ {[%clk 0:00:46.1]} 15. Kc2 {[%clk 0:01:56.9]} 15... c5
{[%clk 0:00:33.7]} 16. Nd5 {[%clk 0:01:13.9]} 16... Nc6 {[%clk 0:00:19.6]} 17.
dxc5 {[%clk 0:01:06.1]} 17... N4xe5 {[%clk 0:00:07.6]} 18. b4 {[%clk 0:00:46.6]}
18... Bd8 {[%clk 0:00:07.4]} 19. Bxd8 {[%clk 0:00:36.4]} 19... Rxd8 {[%clk
0:00:08.3]} 20. Nec3 {[%clk 0:00:28.8]} 20... f5 {[%clk 0:00:08.2]} 21. exf5
{[%clk 0:00:17.1]} 21... Nd4+ {[%clk 0:00:08]} 22. Kb2 {[%clk 0:00:18]} 22...
Bxf5 {[%clk 0:00:07.5]} 23. Re1 {[%clk 0:00:16.8]} 23... Nec6 {[%clk 0:00:06.2]}
24. Bc4 {[%clk 0:00:15.8]} 24... Kh8 {[%clk 0:00:05.9]} 25. Rhf1 {[%clk
0:00:14.2]} 25... Bg6 {[%clk 0:00:05.7]} 26. Ne7 {[%clk 0:00:13.8]} 26... Nxe7
{[%clk 0:00:05.5]} 27. Rxe7 {[%clk 0:00:14.7]} 27... Nc2 {[%clk 0:00:05.4]} 28.
Rf2 {[%clk 0:00:10.9]} 28... Nd4 {[%clk 0:00:05]} 29. Bf7 {[%clk 0:00:10.5]}
29... Bxf7 {[%clk 0:00:04.6]} 30. Rfxf7 {[%clk 0:00:11.4]} 30... Rg8 {[%clk
0:00:04.1]} 31. Rxb7 {[%clk 0:00:11.2]} 31... a5 {[%clk 0:00:04.1]} 32. b5
{[%clk 0:00:11.2]} 32... a4 {[%clk 0:00:04.2]} 33. c6 {[%clk 0:00:11.6]} 33...
Rae8 {[%clk 0:00:04.5]} 34. Rbe7 {[%clk 0:00:11.7]} 34... Rd8 {[%clk 0:00:04.6]}
35. Rd7 {[%clk 0:00:12.2]} 35... Rde8 {[%clk 0:00:04.6]} 36. Rxd4 {[%clk
0:00:12.2]} 36... Re2+ {[%clk 0:00:03.9]} 37. Nxe2 {[%clk 0:00:12.7]} 1-0

[Event "Early-Titled-Tuesday-Blitz-February-27-2024"]
[Site "Chess.com"]
[Date "2024.02.27"]
[Round "1"]
[White "nihalsarin"]
[Black "Bilan_Danila"]
[Result "1-0"]
[WhiteElo "3202"]
[BlackElo "2541"]
[TimeControl "180+1"]
[EndTime "8:07:28 PST"]
[Termination "nihalsarin won by resignation"]

1. d4 {[%clk 0:03:00.9]} 1... d5 {[%clk 0:02:55.2]} 2. c4 {[%clk 0:02:55.6]}
2... c6 {[%clk 0:02:54.7]} 3. Nf3 {[%clk 0:02:55.2]} 3... Nf6 {[%clk 0:02:54.4]}
4. e3 {[%clk 0:02:55.1]} 4... g6 {[%clk 0:02:51.5]} 5. Be2 {[%clk 0:02:44]} 5...
Bg7 {[%clk 0:02:50.9]} 6. O-O {[%clk 0:02:44.9]} 6... O-O {[%clk 0:02:50.1]} 7.
Nc3 {[%clk 0:02:32.8]} 7... Ne4 {[%clk 0:02:46]} 8. Bd2 {[%clk 0:02:21.9]} 8...
Nxd2 {[%clk 0:02:33.1]} 9. Qxd2 {[%clk 0:02:21]} 9... Bf5 {[%clk 0:02:23.3]} 10.
Rac1 {[%clk 0:02:18.1]} 10... dxc4 {[%clk 0:01:53.7]} 11. Bxc4 {[%clk 0:02:19]}
11... Nd7 {[%clk 0:01:47.4]} 12. h3 {[%clk 0:02:09.4]} 12... e5 {[%clk
0:01:32.7]} 13. Rfd1 {[%clk 0:02:08.1]} 13... exd4 {[%clk 0:01:26.9]} 14. Nxd4
{[%clk 0:02:09]} 14... Ne5 {[%clk 0:01:12.2]} 15. Nxf5 {[%clk 0:02:03.7]} 15...
Qxd2 {[%clk 0:01:04.5]} 16. Rxd2 {[%clk 0:02:04.6]} 16... Nxc4 {[%clk
0:01:03.6]} 17. Ne7+ {[%clk 0:02:05.5]} 17... Kh8 {[%clk 0:01:03.4]} 18. Rd7
{[%clk 0:02:06.4]} 18... Rab8 {[%clk 0:00:50]} 19. Na4 {[%clk 0:01:55.2]} 19...
Rfd8 {[%clk 0:00:42.1]} 20. Rxd8+ {[%clk 0:01:52]} 20... Rxd8 {[%clk 0:00:42.1]}
21. Rxc4 {[%clk 0:01:52.7]} 21... b5 {[%clk 0:00:36]} 22. Rxc6 {[%clk
0:01:52.7]} 22... bxa4 {[%clk 0:00:36.4]} 23. Ra6 {[%clk 0:01:36]} 23... Rd7
{[%clk 0:00:27.8]} 24. Nc8 {[%clk 0:01:35.8]} 24... Bxb2 {[%clk 0:00:20.8]} 25.
Rxa4 {[%clk 0:01:33.5]} 25... Rd1+ {[%clk 0:00:13.8]} 26. Kh2 {[%clk 0:01:33.4]}
26... Be5+ {[%clk 0:00:13.9]} 27. f4 {[%clk 0:01:33.6]} 27... Bf6 {[%clk
0:00:09.3]} 28. Rxa7 {[%clk 0:01:33.5]} 28... Kg7 {[%clk 0:00:09.4]} 29. Ra6
{[%clk 0:01:29.2]} 29... h5 {[%clk 0:00:07.7]} 30. Nd6 {[%clk 0:01:29.6]} 30...
Bh4 {[%clk 0:00:07.1]} 31. Nc4 {[%clk 0:01:22.9]} 31... Be1 {[%clk 0:00:07.1]}
32. g4 {[%clk 0:01:20.1]} 32... h4 {[%clk 0:00:06.1]} 33. Ra7 {[%clk 0:01:19.2]}
33... Rc1 {[%clk 0:00:05.9]} 34. Ne5 {[%clk 0:01:15.5]} 34... Rc2+ {[%clk
0:00:06]} 35. Kh1 {[%clk 0:01:16.1]} 35... Bg3 {[%clk 0:00:05.3]} 36. Rxf7+
{[%clk 0:01:16.2]} 36... Kg8 {[%clk 0:00:05.8]} 37. Rf6 {[%clk 0:01:09.1]} 37...
Rxa2 {[%clk 0:00:05.3]} 38. Rxg6+ {[%clk 0:01:09]} 38... Kh7 {[%clk 0:00:06.2]}
39. Rg5 {[%clk 0:01:09.3]} 39... Re2 {[%clk 0:00:04.1]} 40. Nf3 {[%clk
0:01:04.1]} 40... Rxe3 {[%clk 0:00:04]} 41. Nxh4 {[%clk 0:01:01.9]} 41... Bxf4
{[%clk 0:00:02.8]} 42. Rh5+ {[%clk 0:01:02.3]} 42... Kg8 {[%clk 0:00:02.9]} 43.
Nf5 {[%clk 0:01:00]} 43... Rd3 {[%clk 0:00:01.3]} 44. Kg2 {[%clk 0:00:59.3]}
44... Kf7 {[%clk 0:00:01.4]} 45. Rh7+ {[%clk 0:00:52.9]} 45... Kf6 {[%clk
0:00:01.4]} 46. Rb7 {[%clk 0:00:52.6]} 46... Rd2+ {[%clk 0:00:01.5]} 47. Kf3
{[%clk 0:00:52.5]} 47... Be5 {[%clk 0:00:02.2]} 48. Rb6+ {[%clk 0:00:51.7]}
48... Kf7 {[%clk 0:00:02.8]} 49. g5 {[%clk 0:00:50.9]} 49... Bh8 {[%clk
0:00:01.8]} 50. g6+ {[%clk 0:00:49.8]} 50... Kg8 {[%clk 0:00:01.9]} 51. Rb8+
{[%clk 0:00:49.6]} 1-0

[Event "Early-Titled-Tuesday-Blitz-February-27-2024"]
[Site "Chess.com"]
[Date "2024.02.27"]
[Round "1"]
[White "Oleksandr_Bortnyk"]
[Black "VinzentSpitzl"]
[Result "1-0"]
[WhiteElo "3055"]
[BlackElo "2533"]
[TimeControl "180+1"]
[EndTime "8:07:28 PST"]
[Termination "Oleksandr_Bortnyk won on time"]

1. e4 {[%clk 0:02:59]} 1... c6 {[%clk 0:02:57.9]} 2. c4 {[%clk 0:02:57.2]} 2...
d5 {[%clk 0:02:57.8]} 3. cxd5 {[%clk 0:02:58.1]} 3... cxd5 {[%clk 0:02:58.1]} 4.
exd5 {[%clk 0:02:59]} 4... Nf6 {[%clk 0:02:57.9]} 5. Qa4+ {[%clk 0:02:58.9]}
5... Bd7 {[%clk 0:02:54.7]} 6. Qb3 {[%clk 0:02:57.1]} 6... Qb6 {[%clk 0:02:49]}
7. Bc4 {[%clk 0:02:38.8]} 7... Qxb3 {[%clk 0:02:45.4]} 8. Bxb3 {[%clk
0:02:39.7]} 8... Na6 {[%clk 0:02:45.3]} 9. Nc3 {[%clk 0:02:26.8]} 9... Nc5
{[%clk 0:02:45.3]} 10. Bc4 {[%clk 0:02:25.8]} 10... Rb8 {[%clk 0:02:34.1]} 11.
d4 {[%clk 0:02:24.9]} 11... Nce4 {[%clk 0:02:30.5]} 12. Nge2 {[%clk 0:02:21]}
12... Nd6 {[%clk 0:02:22.6]} 13. Bf4 {[%clk 0:02:18.2]} 13... Rc8 {[%clk
0:02:21.8]} 14. Bd3 {[%clk 0:02:12]} 14... g6 {[%clk 0:02:21.2]} 15. Be5 {[%clk
0:02:11]} 15... Bg7 {[%clk 0:02:20.9]} 16. O-O {[%clk 0:02:10.9]} 16... O-O
{[%clk 0:02:19.9]} 17. b3 {[%clk 0:02:07.6]} 17... b5 {[%clk 0:02:12]} 18. Bxd6
{[%clk 0:02:06.8]} 18... exd6 {[%clk 0:02:11.8]} 19. Bxb5 {[%clk 0:02:07.1]}
19... Bxb5 {[%clk 0:01:57.8]} 20. Nxb5 {[%clk 0:02:08]} 20... Nxd5 {[%clk
0:01:57.8]} 21. Rac1 {[%clk 0:01:58.3]} 21... Rxc1 {[%clk 0:01:46.3]} 22. Rxc1
{[%clk 0:01:57.1]} 22... Re8 {[%clk 0:01:46.9]} 23. Kf1 {[%clk 0:01:56.2]} 23...
Nb4 {[%clk 0:01:29.5]} 24. Nxd6 {[%clk 0:01:53.3]} 24... Rd8 {[%clk 0:01:26.8]}
25. Rc8 {[%clk 0:01:52.2]} 25... Rxc8 {[%clk 0:01:20.6]} 26. Nxc8 {[%clk
0:01:53.1]} 26... a6 {[%clk 0:01:13.4]} 27. a4 {[%clk 0:01:48.1]} 27... Kf8
{[%clk 0:01:07.4]} 28. Nb6 {[%clk 0:01:33.1]} 28... Ke7 {[%clk 0:01:03.8]} 29.
Nc4 {[%clk 0:01:28.7]} 29... Nc2 {[%clk 0:00:57.8]} 30. d5 {[%clk 0:01:22.5]}
30... Nb4 {[%clk 0:00:53.8]} 31. d6+ {[%clk 0:01:18.7]} 31... Kd7 {[%clk
0:00:53.9]} 32. Nc1 {[%clk 0:00:42.7]} 32... Bd4 {[%clk 0:00:37.9]} 33. Ke2
{[%clk 0:00:41.4]} 33... Nd5 {[%clk 0:00:34.7]} 34. Nd3 {[%clk 0:00:40.2]} 34...
Nc3+ {[%clk 0:00:31.1]} 35. Kf3 {[%clk 0:00:40.6]} 35... f6 {[%clk 0:00:21]} 36.
Nb4 {[%clk 0:00:37.3]} 36... a5 {[%clk 0:00:17.4]} 37. Nd3 {[%clk 0:00:36.2]}
37... h6 {[%clk 0:00:10.4]} 38. h4 {[%clk 0:00:35.9]} 38... g5 {[%clk
0:00:09.9]} 39. hxg5 {[%clk 0:00:31]} 39... hxg5 {[%clk 0:00:09.7]} 40. g4
{[%clk 0:00:31.2]} 40... Na2 {[%clk 0:00:03.3]} 41. Ke4 {[%clk 0:00:29.4]} 41...
Bc3 {[%clk 0:00:02.3]} 42. Kd5 {[%clk 0:00:28.4]} 42... Nb4+ {[%clk 0:00:01.5]}
43. Nxb4 {[%clk 0:00:28.7]} 43... Bxb4 {[%clk 0:00:02.4]} 44. Nb6+ {[%clk
0:00:28.9]} 44... Kd8 {[%clk 0:00:02.9]} 45. f3 {[%clk 0:00:28.4]} 1-0

[Event "Early-Titled-Tuesday-Blitz-February-27-2024"]
[Site "Chess.com"]
[Date "2024.02.27"]
[Round "1"]
[White "regenda"]
[Black "betta2004"]
[Result "1-0"]
[WhiteElo "2265"]
[BlackElo "2591"]
[TimeControl "180+1"]
[EndTime "8:07:28 PST"]
[Termination "regenda won by checkmate"]

1. e4 {[%clk 0:02:54.6]} 1... e5 {[%clk 0:02:59.1]} 2. Nf3 {[%clk 0:02:54.5]}
2... Nf6 {[%clk 0:02:59.7]} 3. Nc3 {[%clk 0:02:50.9]} 3... Bc5 {[%clk 0:02:59]}
4. Bc4 {[%clk 0:02:50.5]} 4... d6 {[%clk 0:02:55.5]} 5. h3 {[%clk 0:02:49.6]}
5... O-O {[%clk 0:02:54.9]} 6. d3 {[%clk 0:02:49.6]} 6... c6 {[%clk 0:02:54.4]}
7. a3 {[%clk 0:02:47.4]} 7... a5 {[%clk 0:02:54.6]} 8. O-O {[%clk 0:02:46.2]}
8... Nbd7 {[%clk 0:02:52.5]} 9. Be3 {[%clk 0:02:38.1]} 9... h6 {[%clk
0:02:28.9]} 10. Qd2 {[%clk 0:02:36]} 10... b5 {[%clk 0:02:22]} 11. Bb3 {[%clk
0:02:34.2]} 11... Nh7 {[%clk 0:02:10.9]} 12. Ne2 {[%clk 0:02:26.3]} 12... Bxe3
{[%clk 0:01:43.3]} 13. Qxe3 {[%clk 0:02:25.9]} 13... Ng5 {[%clk 0:01:43.5]} 14.
Ng3 {[%clk 0:02:25.6]} 14... g6 {[%clk 0:01:42.2]} 15. Nh4 {[%clk 0:02:19.2]}
15... Kg7 {[%clk 0:01:35.9]} 16. Nhf5+ {[%clk 0:02:09.7]} 16... gxf5 {[%clk
0:01:35.8]} 17. Nxf5+ {[%clk 0:02:10.6]} 17... Kh7 {[%clk 0:01:35.4]} 18. h4
{[%clk 0:02:11]} 18... Nc5 {[%clk 0:01:13.7]} 19. hxg5 {[%clk 0:01:25.8]} 19...
Bxf5 {[%clk 0:01:10.5]} 20. exf5 {[%clk 0:01:23.4]} 20... Qxg5 {[%clk
0:01:11.1]} 21. Ba2 {[%clk 0:01:17.1]} 21... Qxf5 {[%clk 0:01:07.3]} 22. f4
{[%clk 0:01:12.2]} 22... e4 {[%clk 0:00:55.5]} 23. b4 {[%clk 0:01:08.5]} 23...
axb4 {[%clk 0:00:48.7]} 24. axb4 {[%clk 0:01:09.4]} 24... Nd7 {[%clk 0:00:17.6]}
25. dxe4 {[%clk 0:01:09.1]} 25... Qf6 {[%clk 0:00:18.1]} 26. c3 {[%clk
0:01:04.9]} 26... Ra3 {[%clk 0:00:17.4]} 27. Be6 {[%clk 0:00:57.2]} 27... Rxc3
{[%clk 0:00:10.3]} 28. Bf5+ {[%clk 0:00:49.8]} 28... Kh8 {[%clk 0:00:10.5]} 29.
Qd2 {[%clk 0:00:33.6]} 29... Nb6 {[%clk 0:00:04.7]} 30. e5 {[%clk 0:00:20.8]}
30... Qxf5 {[%clk 0:00:02.4]} 31. Qxc3 {[%clk 0:00:21.3]} 31... Nc4 {[%clk
0:00:02.7]} 32. exd6+ {[%clk 0:00:20.8]} 32... f6 {[%clk 0:00:03.3]} 33. Rad1
{[%clk 0:00:16]} 33... Rd8 {[%clk 0:00:03.1]} 34. d7 {[%clk 0:00:15.9]} 34...
Rxd7 {[%clk 0:00:02.3]} 35. Rxd7 {[%clk 0:00:16]} 35... Qxd7 {[%clk 0:00:03.2]}
36. Qxf6+ {[%clk 0:00:16.6]} 36... Kg8 {[%clk 0:00:03.8]} 37. Re1 {[%clk
0:00:16.8]} 37... Nd6 {[%clk 0:00:02.6]} 38. Re7 {[%clk 0:00:15.8]} 38... Ne4
{[%clk 0:00:02]} 39. Qg7# {[%clk 0:00:15.9]} 1-0

[Event "Early-Titled-Tuesday-Blitz-February-27-2024"]
[Site "Chess.com"]
[Date "2024.02.27"]
[Round "1"]
[White "jraosam"]
[Black "EvilMorty23"]
[Result "0-1"]
[WhiteElo "1910"]
[BlackElo "2544"]
[TimeControl "180+1"]
[EndTime "8:07:29 PST"]
[Termination "EvilMorty23 won by resignation"]

1. Nf3 {[%clk 0:02:55.9]} 1... Nf6 {[%clk 0:03:00]} 2. c4 {[%clk 0:02:51.7]}
2... e6 {[%clk 0:03:00]} 3. e3 {[%clk 0:02:50.3]} 3... d5 {[%clk 0:03:00.3]} 4.
b3 {[%clk 0:02:48.8]} 4... Be7 {[%clk 0:03:00.7]} 5. Bb2 {[%clk 0:02:47.1]} 5...
O-O {[%clk 0:03:00.8]} 6. Be2 {[%clk 0:02:43]} 6... b6 {[%clk 0:02:58.3]} 7. O-O
{[%clk 0:02:41.9]} 7... Bb7 {[%clk 0:02:54.7]} 8. cxd5 {[%clk 0:02:29.6]} 8...
Nxd5 {[%clk 0:02:51.5]} 9. Nc3 {[%clk 0:02:28.5]} 9... Bf6 {[%clk 0:02:50.7]}
10. d4 {[%clk 0:02:26.9]} 10... c5 {[%clk 0:02:48.3]} 11. Rc1 {[%clk 0:02:24.6]}
11... Nd7 {[%clk 0:02:44.4]} 12. Qd2 {[%clk 0:02:21.8]} 12... Rc8 {[%clk
0:02:43.8]} 13. Rfd1 {[%clk 0:02:20.6]} 13... Qe7 {[%clk 0:02:43.1]} 14. dxc5
{[%clk 0:02:10.8]} 14... Nxc5 {[%clk 0:02:41.9]} 15. Nb5 {[%clk 0:02:11]} 15...
a6 {[%clk 0:02:34.4]} 16. Bxf6 {[%clk 0:02:09.4]} 16... gxf6 {[%clk 0:02:34.3]}
17. Nbd4 {[%clk 0:02:04.3]} 17... Kh8 {[%clk 0:02:25.9]} 18. Qb2 {[%clk
0:01:56.8]} 18... Rg8 {[%clk 0:02:25.2]} 19. Kh1 {[%clk 0:01:50.8]} 19... Ne4
{[%clk 0:02:20.8]} 20. Bd3 {[%clk 0:01:47.2]} 20... Ndc3 {[%clk 0:02:14.3]} 21.
Rf1 {[%clk 0:01:42.5]} 21... Rg7 {[%clk 0:02:03.5]} 22. Bxe4 {[%clk 0:01:36.7]}
22... Nxe4 {[%clk 0:02:01.6]} 23. Rxc8+ {[%clk 0:01:36.2]} 23... Bxc8 {[%clk
0:02:02.5]} 24. Qc2 {[%clk 0:01:34.4]} 24... Bb7 {[%clk 0:02:00.7]} 25. Ne2
{[%clk 0:01:22.6]} 25... f5 {[%clk 0:01:46.6]} 26. Ng3 {[%clk 0:01:19.2]} 26...
h6 {[%clk 0:01:35.6]} 27. Nxe4 {[%clk 0:01:10]} 27... Bxe4 {[%clk 0:01:36.5]}
28. Qe2 {[%clk 0:01:08.6]} 28... Qb7 {[%clk 0:01:33.8]} 29. Rg1 {[%clk
0:01:02.6]} 29... Kh7 {[%clk 0:01:22.7]} 30. Ne1 {[%clk 0:01:01.2]} 30... b5
{[%clk 0:01:13.3]} 31. f3 {[%clk 0:00:57.3]} 31... Bd5 {[%clk 0:01:13]} 32. Nd3
{[%clk 0:00:47.5]} 32... Rg5 {[%clk 0:01:12.5]} 33. Nf4 {[%clk 0:00:45.9]} 33...
Bc6 {[%clk 0:01:11.4]} 34. h4 {[%clk 0:00:45.3]} 34... Rg7 {[%clk 0:01:07.2]}
35. Kh2 {[%clk 0:00:45]} 35... Qc7 {[%clk 0:01:02.9]} 36. Qc2 {[%clk 0:00:42.7]}
36... Qd6 {[%clk 0:00:51.4]} 37. Rd1 {[%clk 0:00:40]} 37... Bd5 {[%clk
0:00:49.3]} 38. Kh1 {[%clk 0:00:22]} 38... Qd8 {[%clk 0:00:42.1]} 39. Nxd5
{[%clk 0:00:20.3]} 39... Qxh4+ {[%clk 0:00:42.2]} 40. Kg1 {[%clk 0:00:20.4]}
40... exd5 {[%clk 0:00:38.9]} 41. Qxf5+ {[%clk 0:00:20.3]} 41... Kg8 {[%clk
0:00:38]} 42. Rxd5 {[%clk 0:00:19.8]} 42... Rg6 {[%clk 0:00:30]} 43. Rd8+ {[%clk
0:00:19.1]} 43... Qxd8 {[%clk 0:00:29.3]} 0-1

[Event "Early-Titled-Tuesday-Blitz-February-27-2024"]
[Site "Chess.com"]
[Date "2024.02.27"]
[Round "1"]
[White "Beca95"]
[Black "TitarovVasiliYouTube"]
[Result "0-1"]
[WhiteElo "2896"]
[BlackElo "2524"]
[TimeControl "180+1"]
[EndTime "8:07:30 PST"]
[Termination "TitarovVasiliYouTube won by resignation"]

1. d4 {[%clk 0:03:00.9]} 1... d5 {[%clk 0:02:58.8]} 2. c4 {[%clk 0:03:00.5]}
2... e6 {[%clk 0:02:59.3]} 3. Nf3 {[%clk 0:03:00.7]} 3... Nf6 {[%clk 0:02:58.8]}
4. Nc3 {[%clk 0:03:01.4]} 4... a6 {[%clk 0:02:58.9]} 5. cxd5 {[%clk 0:03:00.3]}
5... exd5 {[%clk 0:02:59.8]} 6. Bg5 {[%clk 0:03:00.4]} 6... Be6 {[%clk
0:03:00.1]} 7. Bxf6 {[%clk 0:03:00.4]} 7... Qxf6 {[%clk 0:02:59.8]} 8. Qb3
{[%clk 0:03:01.2]} 8... Ra7 {[%clk 0:02:59.1]} 9. O-O-O {[%clk 0:03:00]} 9...
Qd8 {[%clk 0:02:52]} 10. h4 {[%clk 0:02:40.8]} 10... Be7 {[%clk 0:02:46]} 11. g3
{[%clk 0:02:38.6]} 11... c6 {[%clk 0:02:33.5]} 12. Bh3 {[%clk 0:02:35.4]} 12...
Bxh3 {[%clk 0:02:32]} 13. Rxh3 {[%clk 0:02:36.3]} 13... Nd7 {[%clk 0:02:30.7]}
14. Qc2 {[%clk 0:02:35.7]} 14... Nf6 {[%clk 0:02:29.1]} 15. Ne5 {[%clk
0:02:35.3]} 15... O-O {[%clk 0:02:15.6]} 16. g4 {[%clk 0:02:34.9]} 16... Nd7
{[%clk 0:02:13.1]} 17. Nf3 {[%clk 0:02:29.3]} 17... a5 {[%clk 0:02:09.9]} 18. e4
{[%clk 0:02:21.2]} 18... dxe4 {[%clk 0:02:07.6]} 19. Nxe4 {[%clk 0:02:22.1]}
19... Nb6 {[%clk 0:01:59.2]} 20. Nfg5 {[%clk 0:02:00.2]} 20... g6 {[%clk
0:01:38.9]} 21. Nf3 {[%clk 0:01:53.3]} 21... Qd5 {[%clk 0:01:22.1]} 22. Nc3
{[%clk 0:01:51.2]} 22... Qd6 {[%clk 0:01:16.8]} 23. Ne5 {[%clk 0:01:49.8]} 23...
Bf6 {[%clk 0:01:06]} 24. f4 {[%clk 0:01:46.1]} 24... Bxe5 {[%clk 0:01:05.1]} 25.
fxe5 {[%clk 0:01:40.9]} 25... Qe6 {[%clk 0:01:05.5]} 26. Ne4 {[%clk 0:01:40.6]}
26... Nd5 {[%clk 0:01:03.3]} 27. Rg1 {[%clk 0:01:32.3]} 27... Nb4 {[%clk
0:00:56.1]} 28. Qe2 {[%clk 0:01:20.3]} 28... Qxa2 {[%clk 0:00:52.6]} 29. Ra3
{[%clk 0:01:15.4]} 29... Qe6 {[%clk 0:00:46.7]} 30. h5 {[%clk 0:01:14.2]} 30...
Rd8 {[%clk 0:00:34.6]} 31. Nf6+ {[%clk 0:01:11.6]} 31... Kg7 {[%clk 0:00:32.8]}
32. hxg6 {[%clk 0:01:10.4]} 32... fxg6 {[%clk 0:00:15.7]} 33. Rh1 {[%clk
0:01:08.5]} 33... h6 {[%clk 0:00:16.1]} 34. Rxh6 {[%clk 0:01:07.3]} 34... Kxh6
{[%clk 0:00:09]} 35. Rh3+ {[%clk 0:00:51.5]} 35... Kg7 {[%clk 0:00:09.3]} 36.
Rh7+ {[%clk 0:00:50.9]} 36... Kf8 {[%clk 0:00:09.8]} 37. Qf1 {[%clk 0:00:51.1]}
37... Nd3+ {[%clk 0:00:04.4]} 38. Qxd3 {[%clk 0:00:41.5]} 38... Qa2 {[%clk
0:00:04.4]} 39. Qf1 {[%clk 0:00:25.4]} 39... Qa1+ {[%clk 0:00:04.3]} 40. Kc2
{[%clk 0:00:25.6]} 40... Qxf1 {[%clk 0:00:05.2]} 41. Rh8+ {[%clk 0:00:24.4]}
41... Ke7 {[%clk 0:00:05.7]} 42. Rh7+ {[%clk 0:00:25]} 42... Ke6 {[%clk
0:00:05.9]} 43. d5+ {[%clk 0:00:24.6]} 43... cxd5 {[%clk 0:00:05.4]} 0-1

[Event "Early-Titled-Tuesday-Blitz-February-27-2024"]
[Site "Chess.com"]
[Date "2024.02.27"]
[Round "1"]
[White "Fjal"]
[Black "Pelusiansky"]
[Result "0-1"]
[WhiteElo "2217"]
[BlackElo "2595"]
[TimeControl "180+1"]
[EndTime "8:07:30 PST"]
[Termination "Pelusiansky won on time"]

1. Nf3 {[%clk 0:02:59]} 1... Nf6 {[%clk 0:02:59.3]} 2. g3 {[%clk 0:02:59.3]}
2... d5 {[%clk 0:02:59.1]} 3. Bg2 {[%clk 0:03:00.2]} 3... e6 {[%clk 0:02:59.7]}
4. O-O {[%clk 0:03:00.2]} 4... Be7 {[%clk 0:03:00.3]} 5. d3 {[%clk 0:03:01.1]}
5... O-O {[%clk 0:03:00.7]} 6. Nbd2 {[%clk 0:03:02]} 6... b6 {[%clk 0:03:01.2]}
7. e4 {[%clk 0:03:02.7]} 7... Bb7 {[%clk 0:03:01.9]} 8. e5 {[%clk 0:03:03.2]}
8... Nfd7 {[%clk 0:03:01.7]} 9. Re1 {[%clk 0:03:04.1]} 9... c5 {[%clk
0:03:00.4]} 10. Nf1 {[%clk 0:03:04.7]} 10... Nc6 {[%clk 0:03:00]} 11. h4 {[%clk
0:03:05]} 11... b5 {[%clk 0:02:49.5]} 12. N1h2 {[%clk 0:03:04]} 12... Re8 {[%clk
0:02:49.9]} 13. h5 {[%clk 0:03:04]} 13... Bf8 {[%clk 0:02:47.5]} 14. Ng4 {[%clk
0:03:04.3]} 14... a5 {[%clk 0:02:44.2]} 15. h6 {[%clk 0:03:03.8]} 15... g6
{[%clk 0:02:42.8]} 16. Bg5 {[%clk 0:03:04.1]} 16... Be7 {[%clk 0:02:41.2]} 17.
Qd2 {[%clk 0:03:03.9]} 17... b4 {[%clk 0:02:38.5]} 18. Qf4 {[%clk 0:03:01.9]}
18... Rf8 {[%clk 0:02:14.3]} 19. c3 {[%clk 0:02:26]} 19... a4 {[%clk 0:02:07.5]}
20. a3 {[%clk 0:02:18.2]} 20... bxc3 {[%clk 0:01:40.4]} 21. bxc3 {[%clk
0:02:15.3]} 21... Na5 {[%clk 0:01:39.5]} 22. Bxe7 {[%clk 0:01:55]} 22... Qxe7
{[%clk 0:01:38.5]} 23. Qxa4 {[%clk 0:01:55.9]} 23... Bc6 {[%clk 0:01:25]} 24.
Qf4 {[%clk 0:01:54]} 24... Nb3 {[%clk 0:01:19.3]} 25. Ra2 {[%clk 0:01:41.2]}
25... Ra4 {[%clk 0:01:19.1]} 26. d4 {[%clk 0:01:25]} 26... Rfa8 {[%clk 0:01:17]}
27. Rb1 {[%clk 0:00:58.4]} 27... c4 {[%clk 0:01:16.1]} 28. Ng5 {[%clk
0:00:41.1]} 28... Rxa3 {[%clk 0:01:02]} 29. Rxa3 {[%clk 0:00:40.9]} 29... Rxa3
{[%clk 0:01:02.5]} 30. Kh2 {[%clk 0:00:39.2]} 30... Ra8 {[%clk 0:00:59.5]} 31.
Bf3 {[%clk 0:00:37.9]} 31... Rf8 {[%clk 0:00:56.9]} 32. Bd1 {[%clk 0:00:31.9]}
32... f6 {[%clk 0:00:51.7]} 33. exf6 {[%clk 0:00:27.8]} 33... Nxf6 {[%clk
0:00:50.5]} 34. Kg2 {[%clk 0:00:22.4]} 34... Ne4 {[%clk 0:00:37.1]} 35. Qxf8+
{[%clk 0:00:07.9]} 35... Qxf8 {[%clk 0:00:30.6]} 36. Nxe6 {[%clk 0:00:07.6]}
36... Qf5 {[%clk 0:00:24.7]} 37. Bxb3 {[%clk 0:00:03.3]} 37... cxb3 {[%clk
0:00:20.8]} 38. Rxb3 {[%clk 0:00:02.8]} 38... Qxe6 {[%clk 0:00:20]} 39. Rb8+
{[%clk 0:00:02.8]} 39... Be8 {[%clk 0:00:20.2]} 40. Ne5 {[%clk 0:00:02]} 40...
Nd6 {[%clk 0:00:19.9]} 41. f4 {[%clk 0:00:02.3]} 41... Qf5 {[%clk 0:00:19.6]}
0-1